Workbook

Sheet Aux SNP - Actuals Ledger
A1: %,S2YEAR | G1: %,QBOR_GASB_LEDGER_NVS,CA.POSTED_TOTAL_AMT,FFUND_CODE,TBOR_AUXSNP_FUND,NHOUSING | I1: %,QBOR_GASB_LEDGER_NVS,CA.POSTED_TOTAL_AMT,FFUND_CODE,TBOR_AUXSNP_FUND,NSTORES AND SHOPS | K1: %,QBOR_GASB_LEDGER_NVS,CA.POSTED_TOTAL_AMT,FFUND_CODE,TBOR_AUXSNP_FUND,NFOOD SERVICES | M1: %,QBOR_GASB_LEDGER_NVS,CA.POSTED_TOTAL_AMT,FFUND_CODE,TBOR_AUXSNP_FUND,NTRANSPORT AND PARK | O1: %,QBOR_GASB_LEDGER_NVS,CA.POSTED_TOTAL_AMT,FFUND_CODE,TBOR_AUXSNP_FUND,NTRANSPORTATION | Q1: %,QBOR_GASB_LEDGER_NVS,CA.POSTED_TOTAL_AMT,FFUND_CODE,TBOR_AUXSNP_FUND,NHEALTH SERVICES | S1: %,QBOR_GASB_LEDGER_NVS,CA.POSTED_TOTAL_AMT,FFUND_CODE,TBOR_AUXSNP_FUND,NATHLETICS | U1: %,QBOR_GASB_LEDGER_NVS,CA.POSTED_TOTAL_AMT,FFUND_CODE,TBOR_AUXSNP_FUND,NOTHER OPERATIONS
B2: Kennesaw State University | Y2: AUXSNP
B3: Auxiliary Enterprises | Y3: JBFREEMAN
B4: Statement of Net Position - Actuals Ledger Only | Y4: 2016-06-30
B5: =TEXT(ASD,"mmmm dd, yyyy") -> June 30, 2016 | Y5: GASB_AUXILIARY_STATEMENT_OF_NET_POSITION
Y6: /opt/psoft/psconfig/appserv/prcs/fprod/NVISION/INSTANCE
B7: Information for this report will come from Actuals Ledger only
G8: Residence | I8: Stores and | K8: Food | M8: Parking | O8: Transportation | Q8: Health | S8: Intercollegiate
G9: Halls | I9: Shops | K9: Services | Q9: Services | S9: Athletics | U9: Other | W9: Total
D10: Fund numbers: | G10: 12210 | I10: 12230 | K10: 12220 | M10: 12250 | O10: 12260 | Q10: 12240 | S10: 12280 | U10: 12270
B12: ASSETS
B13: Current Assets
A14: %,FACCOUNT,TBOR_AUXSNP_ACCT,NCASH | B14: Cash and cash equivalents | D14: 111xxx,112xxx,1181xx,118200,1185xx, 1191xx, 1192xx, 1193xx,1194xx | G14: 18583355 | I14: 1845351.937 | K14: -2303936.998 | M14: 7788401.74 | O14: -3265517.245 | Q14: 1053656.257 | S14: 2913830.642 | U14: -1012363.941 | W14: =SUM(G14:U14) -> 25602777.39
A15: %,FACCOUNT,TBOR_AUXSNP_ACCT,NSHORTTERM INVESTMENT | B15: Short-term investments | D15: 1198xx | G15: 0 | I15: 0 | K15: 0 | M15: 0 | O15: 0 | Q15: 0 | S15: 0 | U15: 0 | W15: 0
B16: Accounts receivable, net | W16: 0
A17: %,FACCOUNT,TBOR_AUXSNP_ACCT,NRECEIVABLES_FED | B17: Rec.-Federal Financial Assistance | D17: 124xxx | G17: 0 | I17: 0 | K17: 0 | M17: 0 | O17: 0 | Q17: 0 | S17: 0 | U17: 0 | W17: 0
A18: %,FACCOUNT,TBOR_AUXSNP_ACCT,NRECEIVABLES_STATE | B18: Rec.-State General Appropriations | D18: 123xxx | G18: 0 | I18: 0 | K18: 0 | M18: 0 | O18: 0 | Q18: 0 | S18: 0 | U18: 0 | W18: 0
A19: %,FACCOUNT,TBOR_AUXSNP_ACCT,NRECEIVABLES_OTHER | B19: Rec.- Other | D19: 12xxxx (except for 122xxx, 123xxx, 124xxx, 1260xx, 1268xx,1269xx) | G19: 239508 | I19: 439129.74 | K19: 219610.16 | M19: 107619.69 | O19: 8378.8 | Q19: 0 | S19: 4963.75 | U19: 126677.56 | W19: 1145887.7
A20: %,FACCOUNT,TBOR_AUXSNP_ACCT,NRECEIVABLES_AFFIL | B20: Due From Affiliated Organizations | D20: 1268xx | G20: 1178269.58 | I20: 0 | K20: 180212.66 | M20: 0 | O20: 0 | Q20: 0 | S20: 1012084.78 | U20: 0 | W20: 2370567.02
A21: %,FACCOUNT,TBOR_AUXSNP_ACCT,NINVENTORIES | B21: Inventories | D21: 141xxx, and 142xxx | G21: 0 | I21: 4158204.23 | K21: 0 | M21: 0 | O21: 0 | Q21: 0 | S21: 0 | U21: 0 | W21: 4158204.23
A22: %,FACCOUNT,TBOR_AUXSNP_ACCT,NPREPAID ITEMS | B22: Prepaid Items | D22: 13xxxx | G22: 1282.52 | I22: 150620.26 | K22: 0 | M22: 0 | O22: 0 | Q22: 0 | S22: 0 | U22: 123223.06 | W22: 275125.84
A23: %,FACCOUNT,TBOR_AUXSNP_ACCT,NOTHER ASSETS | B23: Other assets | D23: 1260xx, 2180xx | G23: 0 | I23: 0 | K23: 0 | M23: 0 | O23: 0 | Q23: 0 | S23: 0 | U23: 0 | W23: 0
B24: Total Current Assets | G24: =SUM(G14:G23) -> 20002415.1 | I24: =SUM(I14:I23) -> 6593306.167 | K24: =SUM(K14:K23) -> -1904114.178 | M24: =SUM(M14:M23) -> 7896021.43 | O24: =SUM(O14:O23) -> -3257138.445 | Q24: =SUM(Q14:Q23) -> 1053656.257 | S24: =SUM(S14:S23) -> 3930879.172 | U24: =SUM(U14:U23) -> -762463.321 | W24: 33552562.18
B26: Noncurrent Assets
A27: %,FACCOUNT,TBOR_AUXSNP_ACCT,NNONCURRENT CASH | B27: Noncurrent Cash (Externally Restricted) | D27: 1580xx, 1581xx | G27: 0 | I27: 0 | K27: 0 | M27: 0 | O27: 0 | Q27: 0 | S27: 0 | U27: 0 | W27: =SUM(G27:U27) -> 0
A28: %,FACCOUNT,TBOR_AUXSNP_ACCT,NEXT_SHORTTERM_INVEST | B28: Short-Term Investments (Externally Restricted) | D28: 1582xx | G28: 0 | I28: 0 | K28: 0 | M28: 0 | O28: 0 | Q28: 0 | S28: 0 | U28: 0 | W28: 0
A29: %,FACCOUNT,TBOR_AUXSNP_ACCT,NDUE_AFFILIATED_ORG | B29: Due From Affiliated Organizations | D29: 1269xx (Except 126960 and 126970) | G29: 0 | I29: 0 | K29: 0 | M29: 0 | O29: 0 | Q29: 0 | S29: 0 | U29: 0 | W29: 0
A30: %,FACCOUNT,TBOR_AUXSNP_ACCT,NCAPITAL_RESERVE | B30: Due From USO - Capital Liability Reserve Fund | D30: 126960 | G30: 695485.74 | I30: 0 | K30: 146142.32 | M30: 544851.36 | O30: 0 | Q30: 0 | S30: 12509.76 | U30: 1236 | W30: 1400225.18
A31: %,FACCOUNT,TBOR_AUXSNP_ACCT,NDUE_USG_INSTITUTIONS | B31: Due From Institutions - Capital Liability Reserve Fund | D31: 126970 | G31: 0 | I31: 0 | K31: 0 | M31: 0 | O31: 0 | Q31: 0 | S31: 0 | U31: 0 | W31: 0
A32: %,FACCOUNT,TBOR_AUXSNP_ACCT,NINVESTMENTS | B32: Investments | D32: 15xxxx (except 158xxx) | G32: 0 | I32: 0 | K32: 0 | M32: 0 | O32: 0 | Q32: 0 | S32: 0 | U32: 0 | W32: 0
A33: %,FACCOUNT,TBOR_AUXSNP_ACCT,NNOTES RECEIVABLE | B33: Notes receivable, net | D33: 122xxx | G33: 0 | I33: 0 | K33: 0 | M33: 0 | O33: 0 | Q33: 0 | S33: 0 | U33: 0 | W33: 0
A34: %,FACCOUNT,TBOR_AUXSNP_ACCT,NCAPITAL_ASSETS | B34: Capital assets, net | D34: 16xxxx | G34: 140570871.2 | I34: 2566488.95 | K34: 15988712.32 | M34: 59388578.19 | O34: 2867.6 | Q34: 825480.85 | S34: 4015368.434 | U34: 357558.78 | W34: 223715926.3
B35: Other assets | W35: 0
B36: Total Noncurrent Assets | G36: =SUM(G27:G35) -> 141266356.9 | I36: =SUM(I27:I35) -> 2566488.95 | K36: =SUM(K27:K35) -> 16134854.64 | M36: =SUM(M27:M35) -> 59933429.55 | O36: =SUM(O27:O35) -> 2867.6 | Q36: =SUM(Q27:Q35) -> 825480.85 | S36: =SUM(S27:S35) -> 4027878.194 | U36: =SUM(U27:U35) -> 358794.78 | W36: 225116151.5
B38: TOTAL ASSETS | G38: =G24+G36 -> 161268772 | I38: =I24+I36 -> 9159795.117 | K38: =K24+K36 -> 14230740.46 | M38: =M24+M36 -> 67829450.98 | O38: =O24+O36 -> -3254270.845 | Q38: =Q24+Q36 -> 1879137.107 | S38: =S24+S36 -> 7958757.366 | U38: =U24+U36 -> -403668.541 | W38: =SUM(G38:U38) -> 258668713.6
B40: Deferred Outflows of Resources
A41: %,FACCOUNT,TBOR_AUXSNP_ACCT,NDEF_AMT_DEBT | B41: Deferred Amount on Debt Refunding | D41: 170100 | G41: 1069927.65 | I41: 0 | K41: 0 | M41: 71736.56 | O41: 0 | Q41: 0 | S41: 0 | U41: 0
A42: %,FACCOUNT,TBOR_AUXSNP_ACCT,NDEF_AMT_BEN | B42: Deferred Amount on Defined Benefit Pension Plan | D42: 170200 | G42: 0 | I42: 0 | K42: 0 | M42: 0 | O42: 0 | Q42: 0 | S42: 0 | U42: 0
A43: %,FACCOUNT,TBOR_AUXSNP_ACCT,NDEF_OUTFLOW_RESOURCE | B43: Other Deferred Outflows of Resources | D43: 1700xx, 170900 | G43: 0 | I43: 0 | K43: 0 | M43: 0 | O43: 0 | Q43: 0 | S43: 0 | U43: 0
B44: Total Deferred Outflows of Resources | G44: =SUM(G41:G43) -> 1069927.65 | I44: =SUM(I41:I43) -> 0 | K44: 0 | M44: 71736.56 | O44: =SUM(O41:O43) -> 0 | Q44: 0 | S44: 0 | U44: 0 | W44: 0
B47: LIABILITIES
B48: Current Liabilities
A49: %,R,FACCOUNT,TBOR_AUXSNP_ACCT,NACCOUNTS PAYABLE | B49: Accounts Payable | D49: 2110xx, 2114xx, 2115xx, 2116xx, 2118xx, 211999, 2122xx, 213xxx, 215xxx, 2198xx, 2199xx, 221xxx, 222xxx, 223xxx, 224xxx, 225xxx, 226xxx, 227xxx, 228xxx, 229xxx, 2182xx, 2185xx, 2187xx | G49: 506986.73 | I49: 765297.45 | K49: 4418413.61 | M49: 314133.492 | O49: 0.23 | Q49: 8971.06 | S49: 17476.04 | U49: 58546.76 | W49: =SUM(G49:U49) -> 6089825.372
A50: %,R,FACCOUNT,TBOR_AUXSNP_ACCT,NSALARIES PAYABLE | B50: Salaries Payable | D50: 2121xx | G50: 3920.47 | I50: 6057.64 | K50: 923.04 | M50: 3424.35 | O50: 0 | Q50: 0 | S50: 5710.26 | U50: 2744.37 | W50: 22780.13
A51: %,R,FACCOUNT,TBOR_AUXSNP_ACCT,NBENEFITS | B51: Benefits Payable | D51: 23xxx, 291700 | G51: 0 | I51: 0 | K51: 0 | M51: 0 | O51: 0 | Q51: 0 | S51: 0 | U51: 0 | W51: 0
A52: %,R,FACCOUNT,TBOR_AUXSNP_ACCT,NCONTRACTS PAYABLE | B52: Contracts Payable | D52: 2119xx (except 21195x, 21197x, and 211999) | G52: 0 | I52: 0 | K52: 0 | M52: 0 | O52: 0 | Q52: 0 | S52: 0 | U52: 0 | W52: 0
A53: %,R,FACCOUNT,TBOR_AUXSNP_ACCT,NRETAINAGES_PAYABLE | B53: Retainages Payable | D53: 21195x and 21197x | G53: 0 | I53: 1219 | K53: 0 | M53: 0 | O53: 0 | Q53: 0 | S53: 0 | U53: 0 | W53: 1219
A54: %,R,FACCOUNT,TBOR_AUXSNP_ACCT,NDEPOSITS | B54: Deposits | D54: 214xxx | G54: 0 | I54: 33027.44 | K54: 0 | M54: 0 | O54: 0 | Q54: 0 | S54: 0 | U54: 0 | W54: 33027.44
A55: %,R,FACCOUNT,TBOR_AUXSNP_ACCT,NADVANCES | B55: Advances (Including Tuition & Fees) | D55: 216xxx,217xxx | G55: 154133.8 | I55: 31626.65 | K55: 111495.16 | M55: 639235.78 | O55: -0.15 | Q55: 224718.94 | S55: 986702.13 | U55: 0 | W55: 2147912.31
A56: %,R,FACCOUNT,TBOR_AUXSNP_ACCT,NOTHER LIABILITIES | B56: Other liabilities | D56: 2191xx except for 219101, 219102, 219103, 219104, 219105 | G56: 0 | I56: 0 | K56: 1404.7 | M56: 0 | O56: 0 | Q56: 0 | S56: 0 | U56: 117301.79 | W56: 118706.49
A57: %,R,FACCOUNT,TBOR_AUXSNP_ACCT,NDEPOSITS FOR OTHERS | B57: Deposits held for other organizations | D57: 24xxxx,25xxxx | G57: 0 | I57: 0 | K57: 0 | M57: 0 | O57: 0 | Q57: 0 | S57: 0 | U57: 0 | W57: 0
A58: %,R,FACCOUNT,TBOR_AUXSNP_ACCT,NLEASE PURCHASE | B58: Lease Purchase Obligations | D58: 2194xx | G58: 2590822.83 | I58: 0 | K58: 315002.26 | M58: 2499058.31 | O58: 0 | Q58: 17281.55 | S58: 20697.93 | U58: 14802.42 | W58: 5457665.3
A59: %,R,FACCOUNT,TBOR_AUXSNP_ACCT,NCOMPENSATED ABSENCE | B59: Compensated absences | D59: 2871xx | G59: 82755.43 | I59: 77891.49 | K59: 66036.44 | M59: 10825.71 | O59: 14929.81 | Q59: 20963.12 | S59: 326312.27 | U59: 74548.29 | W59: 674262.56
A60: %,R,FACCOUNT,TBOR_AUXSNP_ACCT,NDUE_2_AFFILIATED_ORG | B60: Due to Affiliated Organizations | D60: 2188xx | G60: 199399.47 | I60: 0 | K60: 0 | M60: 167136.96 | O60: 0 | Q60: 0 | S60: 200800.82 | U60: 0 | W60: 567337.25
A61: %,R,FACCOUNT,TBOR_AUXSNP_ACCT,NDUE_2_USO | B61: Due to USO - Capital Liability Reserve Fund | D61: 218100 | G61: 0 | I61: 0 | K61: 0 | M61: 0 | O61: 0 | Q61: 0 | S61: 0 | U61: 0 | W61: 0
A62: %,R,FACCOUNT,TBOR_AUXSNP_ACCT,NNOTES AND LOANS CUR | B62: Notes and Loans Payable | D62: 2195xx | G62: 0 | I62: 0 | K62: 0 | M62: 0 | O62: 0 | Q62: 0 | S62: 0 | U62: 0 | W62: 0
A63: %,R,FACCOUNT,TBOR_AUXSNP_ACCT,NPOLLUTION_REMED_CURR | B63: Pollution Remediation | D63: 219101 | G63: 0 | I63: 0 | K63: 0 | M63: 0 | O63: 0 | Q63: 0 | S63: 0 | U63: 0 | W63: 0
A64: %,R,FACCOUNT,TBOR_AUXSNP_ACCT,NCLAIMS_JUDGE_ADD_CR | B64: Claims and Judgements | D64: 219103 | G64: 0 | I64: 0 | K64: 0 | M64: 0 | O64: 0 | Q64: 0 | S64: 0 | U64: 0 | W64: 0
B65: Total Current Liabilities | G65: =SUM(G49:G64) -> 3538018.73 | I65: =SUM(I49:I64) -> 915119.67 | K65: 4913275.21 | M65: 3633814.602 | O65: =SUM(O49:O64) -> 14929.89 | Q65: 271934.67 | S65: 1557699.45 | U65: 267943.63 | W65: 15112735.85
B67: Noncurrent Liabilities
A68: %,R,FACCOUNT,TBOR_AUXSNP_ACCT,NLEASE PURCHASE NC | B68: Lease Purchase Obligations | D68: 2911xx | G68: 85678539.93 | I68: 0 | K68: 16904673.7 | M68: 64838273.03 | O68: 0 | Q68: 578089.29 | S68: 1495109.91 | U68: 24050.01 | W68: =SUM(G68:U68) -> 169518735.9
A69: %,R,FACCOUNT,TBOR_AUXSNP_ACCT,NADVANCES_NC | B69: Advances (Including Tuition & Fees) | D69: 2913xx, 2914xx | G69: 0 | I69: 0 | K69: 0 | M69: 0 | O69: 0 | Q69: 0 | S69: 0 | U69: 0 | W69: 0
A70: %,R,FACCOUNT,TBOR_AUXSNP_ACCT,NCOMP_ABSENCE_NC | B70: Compensated Absences | D70: 2971xx | G70: 32466.78 | I70: 37610.61 | K70: 31523.17 | M70: 5033.65 | O70: 5656.48 | Q70: 9155.1 | S70: 154522.74 | U70: 34958.26 | W70: 310926.79
A71: %,R,FACCOUNT,TBOR_AUXSNP_ACCT,NDUE_2_USO_NC | B71: Due to USO - Capital Liability Reserve Fund | D71: 218101 | G71: 0 | I71: 0 | K71: 0 | M71: 0 | O71: 0 | Q71: 0 | S71: 0 | U71: 0 | W71: 0
A72: %,R,FACCOUNT,TBOR_AUXSNP_ACCT,NNET_PENSION_LIAB | B72: Net Pension Liability | D72: 2915xx | G72: 0 | I72: 0 | K72: 0 | M72: 0 | O72: 0 | Q72: 0 | S72: 0 | U72: 0 | W72: 0
A73: %,R,FACCOUNT,TBOR_AUXSNP_ACCT,NPOST_EMP_LIABILITY | B73: Other Post-Employement Benefit Liability | D73: 291600 | G73: 0 | I73: 0 | K73: 0 | M73: 0 | O73: 0 | Q73: 0 | S73: 0 | U73: 0 | W73: 0
A74: %,R,FACCOUNT,TBOR_AUXSNP_ACCT,NOTHER LIABILITIES NC | B74: Other liabilities | D74: 219105 | G74: 0 | I74: 0 | K74: 0 | M74: 0 | O74: 0 | Q74: 0 | S74: 0 | U74: 0 | W74: 0
A75: %,R,FACCOUNT,TBOR_AUXSNP_ACCT,NDUE_2_AFFIL_ORG_NC | B75: Due To Affiliated Organizations | D75: 2189xx | G75: 0 | I75: 0 | K75: 0 | M75: 0 | O75: 0 | Q75: 0 | S75: 0 | U75: 0 | W75: 0
A76: %,R,FACCOUNT,TBOR_AUXSNP_ACCT,NNOTES AND LOANS NC | B76: Notes and Loans Payable | D76: 2912xx | G76: 0 | I76: 0 | K76: 0 | M76: 0 | O76: 0 | Q76: 0 | S76: 0 | U76: 0 | W76: 0
A77: %,R,FACCOUNT,TBOR_AUXSNP_ACCT,NPOLLUTION_REMED | B77: Pollution Remediation, NonCurrent | D77: 219102 | G77: 0 | I77: 0 | K77: 0 | M77: 0 | O77: 0 | Q77: 0 | S77: 0 | U77: 0 | W77: 0
A78: %,R,FACCOUNT,TBOR_AUXSNP_ACCT,NCLAIMS_JUDGE_ADD | B78: Claims and Judgements | D78: 219104 | G78: 0 | I78: 0 | K78: 0 | M78: 0 | O78: 0 | Q78: 0 | S78: 0 | U78: 0 | W78: 0
B79: Total Noncurrent Liabilities | G79: =SUM(G68:G78) -> 85711006.71 | H79: =SUM(H68:H78) -> 0 | I79: 37610.61 | J79: 0 | K79: 16936196.87 | L79: 0 | M79: 64843306.68 | N79: 0 | O79: 5656.48 | Q79: 587244.39 | R79: 0 | S79: 1649632.65 | T79: 0 | U79: 59008.27 | V79: 0 | W79: 169829662.7
B81: TOTAL LIABILITIES | G81: =SUM(G65+G79) -> 89249025.44 | H81: =SUM(H65+H79) -> 0 | I81: 952730.28 | J81: 0 | K81: 21849472.08 | L81: 0 | M81: 68477121.28 | N81: 0 | O81: 20586.37 | Q81: 859179.06 | R81: 0 | S81: 3207332.1 | T81: 0 | U81: 326951.9 | V81: 0 | W81: 184942398.5
B83: Deferred Inflows of Resources
A84: %,R,FACCOUNT,TBOR_AUXSNP_ACCT,NDEF_GAIN_DEBT | B84: Deferred gain on debt refundng | D84: 2981xx | G84: 0 | I84: 0 | K84: 0 | M84: 0 | O84: 0 | Q84: 0 | S84: 0 | U84: 0
A85: %,R,FACCOUNT,TBOR_AUXSNP_ACCT,NDEF_GRANTS | B85: Deferred Grants Received in Advance of Timing Requirements | D85: 2984xx | G85: 0 | I85: 0 | K85: 0 | M85: 0 | O85: 0 | Q85: 0 | S85: 0 | U85: 0
A86: %,R,FACCOUNT,TBOR_AUXSNP_ACCT,NDEF_SRVC_ARRANGEMENT | B86: Deferred service concession arrangement receipts | D86: 2983xx | G86: 67137916.29 | I86: 0 | K86: 0 | M86: 0 | O86: 0 | Q86: 0 | S86: 0 | U86: 0
A87: %,R,FACCOUNT,TBOR_AUXSNP_ACCT,NDEF_BEN_PEN | B87: Deferred Defined Benefit Pension Plan | D87: 2982xx | G87: 0 | I87: 0 | K87: 0 | M87: 0 | O87: 0 | Q87: 0 | S87: 0 | U87: 0
A88: %,R,FACCOUNT,TBOR_AUXSNP_ACCT,NDEF_OTHER_INFLOW | B88: Other Deferred Inflows of Resources | D88: 2980xx, 2989xx | G88: 0 | I88: 0 | K88: 0 | M88: 0 | O88: 0 | Q88: 0 | S88: 0 | U88: 0
B89: Total Deferred Inflows of Resources | G89: =SUM(G84:G88) -> 67137916.29 | H89: =SUM(H84:H88) -> 0 | I89: 0 | J89: 0 | K89: 0 | L89: 0 | M89: 0 | N89: 0 | O89: 0 | Q89: 0 | R89: 0 | S89: 0 | T89: 0 | U89: 0 | V89: 0 | W89: 0
B92: NET POSITION
A93: %,R,FACCOUNT,TBOR_AUXSNP_ACCT,NCAPITAL ASSETS,SPER0to999 | B93: Net Invested in Capital Assets | D93: 311xxx | G93: -13766480.23 | I93: 2565269.95 | K93: -1687578.583 | M93: -7877016.594 | O93: 2867.6 | Q93: 230110.01 | S93: 2499560.594 | U93: 318706.35 | W93: =SUM(G93:U93) -> -17714560.9
B94: Restricted for
A95: %,R,FACCOUNT,TBOR_AUXSNP_ACCT,NNONEXPENDABLE,SPER0to999 | B95: Nonexpendable | D95: 360xxx | G95: 0 | I95: 0 | K95: 0 | M95: 0 | O95: 0 | Q95: 0 | S95: 0 | U95: 0 | W95: =SUM(G95:U95) -> 0
A96: %,R,FACCOUNT,TBOR_AUXSNP_ACCT,NEXPENDABLE,SPER0to999 | B96: Expendable | D96: 371xxx, 371xxx | G96: 0 | I96: 0 | K96: 0 | M96: 0 | O96: 0 | Q96: 0 | S96: 0 | U96: 0 | W96: =SUM(G96:U96) -> 0
A97: %,R,FACCOUNT,TBOR_AUXSNP_ACCT,NUNRESTRICTED,SPER0to999 | B97: Unrestricted | D97: 321xxx,322xxx,323xxx,329xxx,34xxxx | G97: 19718238.16 | I97: 5641794.887 | K97: -5931153.038 | M97: 7301082.848 | O97: -3277724.815 | Q97: 789848.037 | S97: 2251864.672 | U97: -1049326.791 | W97: =SUM(G97:U97) -> 25444623.96
B98: TOTAL NET POSITION | G98: =SUM(G93:G97) -> 5951757.926 | I98: =SUM(I93:I97) -> 8207064.837 | K98: =SUM(K93:K97) -> -7618731.621 | M98: =SUM(M93:M97) -> -575933.746 | O98: =SUM(O93:O97) -> -3274857.215 | Q98: =SUM(Q93:Q97) -> 1019958.047 | S98: =SUM(S93:S97) -> 4751425.266 | U98: =SUM(U93:U97) -> -730620.441 | W98: =SUM(W93:W97) -> 7730063.053
B100: Check Point: Total Assets minus Total Liabilities equals Total Net Position
B101: (If not -0-, find problem) | G101: =G38+G44-G81-G89-G98 -> -2.980232239e-08 | I101: =I38+I44-I81-I89-I98 -> 0 | K101: =K38+K44-K81-K89-K98 -> 0 | M101: =M38+M44-M81-M89-M98 -> -7.450580597e-09 | O101: =O38+O44-O81-O89-O98 -> 0 | Q101: =Q38+Q44-Q81-Q89-Q98 -> 0 | S101: =S38+S44-S81-S89-S98 -> 0 | U101: =U38+U44-U81-U89-U98 -> 0 | W101: =W38+W44-W81-W89-W98 -> 65996252.08
B103: Note: Unrestricted Net Assets include the following:
A104: %,R,FACCOUNT,TBOR_AUXSNP_ACCT,NR AND R RESERVE,SPER0to999 | B104: R & R Reserve | D104: 323xxx | G104: 253736.68 | I104: 1074476.98 | K104: 1043267.22 | M104: 589031.73 | O104: 1515210.3 | Q104: 35100.75 | S104: 1363459.12 | U104: 512689.25 | W104: =SUM(G104:U104) -> 6386972.03
A105: %,R,FACCOUNT,TBOR_AUXSNP_ACCT,NGIFTS,SPER0to999 | B105: Reserves for Deferred Gift Revenue from Auxiliary Vendor | D105: 3292xx | G105: 0 | I105: 0 | K105: 0 | M105: 0 | O105: 0 | Q105: 0 | S105: 0 | U105: 0 | W105: 0
B106: Reserve for Encumbrance | D106: Ledger=ENCUMB: Acct 381xxx, period 0->12 | G106: 128898.68 | I106: 799373.128 | K106: 61080.923 | M106: 215328.69 | O106: 0 | Q106: 0 | S106: 0 | U106: 80854.069 | W106: 1285535.49
A107: %,R,FACCOUNT,TBOR_AUXSNP_ACCT,NINVENTORY,SPER0to999 | B107: Inventory | D107: 322xxx | G107: 0 | I107: 0 | K107: 0 | M107: 0 | O107: 0 | Q107: 0 | S107: 0 | U107: 0 | W107: 0
A108: %,R,FACCOUNT,TBOR_AUXSNP_ACCT,NUNRESTRICTED_OTHER,SPER0to999 | G108: 19464501.48 | I108: 4567317.907 | K108: -6974420.258 | M108: 6712051.118 | O108: -4792935.115 | Q108: 754747.287 | S108: 888405.552 | U108: -1562016.041 | W108: 19057651.93
B109: Other Unrestricted | D109: 321xxx, 329xxx (except for 3292xx),34xxxx | G109: =G108-G106 -> 19335602.8 | I109: =I108-I106 -> 3767944.779 | K109: -7035501.181 | M109: 6496722.428 | O109: =O108-O106 -> -4792935.115 | Q109: 754747.287 | S109: 888405.552 | U109: -1642870.11 | W109: 17772116.44
B110: Total Unrestricted | G110: =SUM(G104:G107)+G109 -> 19718238.16 | I110: =SUM(I104:I107)+I109 -> 5641794.887 | K110: -5931153.038 | M110: 7301082.848 | O110: =SUM(O104:O107)+O109 -> -3277724.815 | Q110: 789848.037 | S110: 2251864.672 | U110: -1049326.791 | V110: =SUM(V104:V107)+V109 -> 0 | W110: =SUM(W104:W107)+W109 -> 25444623.96
B113: Check Point: Unrestricted Net Position detail = Unrestricted Net Position total | G113: =SUM(G97-G110) -> 0 | I113: =SUM(I97-I110) -> 0 | K113: =SUM(K97-K110) -> 9.313225746e-10 | M113: =SUM(M97-M110) -> 9.313225746e-10 | O113: =SUM(O97-O110) -> 4.656612873e-10 | Q113: =SUM(Q97-Q110) -> 0 | S113: =SUM(S97-S110) -> -4.656612873e-10 | U113: =SUM(U97-U110) -> -2.328306437e-10 | W113: =SUM(W97-W110) -> 0
B114: (If not -0-, find problem)
G144: Version | K144: 5.16
D146: Change Information
G147: Date | M147: Developer | O147: Change Request and Details
G148: 2008-05-01 | M148: Lina | O148: Tsk 40393
G149: 2009-02-10 | I149: 1.09 | M149: Lina | O149: Tsk45361 | Q149: Performance tuning
G150: 2009-03-09 | I150: 1.1 | M150: Lina | O150: Tsk49275 | Q150: Replace Program and Fund Logic with Fund logic ONLY
G151: 2009-11-17 | I151: 2.09 | M151: Lina | O151: RFC4796;Tsk3506
G152: 2010-02-08 | I152: 2.12 | M152: Lina | O152: RFC3010;Tsk6939
G153: 2013-04-10 | I153: 2.7 | M153: RMullinix | O153: TSK18706
G154: 2014-04-16 | I154: 3.2 | M154: Yvonne Howington | O154: TSK21560
G155: 2015-01-12 | I155: 4 | M155: Robert Prescott | O155: TSK22594 | Q155: 9.2 Upgrade
G156: 2015-04-22 | I156: 4.2 | M156: Robin Mullinix | O156: TSK24930 | Q156: Changes to Capital Assets, broke out Accumulated Depreciation (account 16x9xx) added to new row
G157: 2015-09-30 | I157: 5 | M157: RMullinix | O157: TSK26266 | Q157: prepare for switch to unix processing
G158: 2016-04-15 | I158: 5.13 | M158: Mpaktinat | O158: tsk27617 | Q158: Update for 5.13 release per the request of the Office of Fiscal Affairs
G159: 2016-05-12 | I159: 5.14 | M159: Robert Prescott | O159: TSK27813 | Q159: Update Mapping for Accounts Payable
G160: 42563 | I160: 5.16 | M160: MPaktinat | O160: TSK28250 | Q160: delete the row for Investment (Externally Restricted)

Sheet Aux SRECNP - Actuals Ledger
A1: %,S2YEAR | G1: %,QBOR_GASB_LEDGER_NVS,CA.POSTED_TOTAL_AMT,FFUND_CODE,TBOR_AUXSREC_FUND,NHOUSING | I1: %,QBOR_GASB_LEDGER_NVS,CA.POSTED_TOTAL_AMT,FFUND_CODE,TBOR_AUXSREC_FUND,NSTORES AND SHOPS | K1: %,QBOR_GASB_LEDGER_NVS,CA.POSTED_TOTAL_AMT,FFUND_CODE,TBOR_AUXSREC_FUND,NFOOD SERVICES | M1: %,QBOR_GASB_LEDGER_NVS,CA.POSTED_TOTAL_AMT,FFUND_CODE,TBOR_AUXSREC_FUND,NTRANSPORT AND PARK | O1: %,QBOR_GASB_LEDGER_NVS,CA.POSTED_TOTAL_AMT,FFUND_CODE,TBOR_AUXSREC_FUND,NTRANSPORTATION | Q1: %,QBOR_GASB_LEDGER_NVS,CA.POSTED_TOTAL_AMT,FFUND_CODE,TBOR_AUXSREC_FUND,NHEALTH SERVICES | S1: %,QBOR_GASB_LEDGER_NVS,CA.POSTED_TOTAL_AMT,FFUND_CODE,TBOR_AUXSREC_FUND,NATHLETICS | U1: %,QBOR_GASB_LEDGER_NVS,CA.POSTED_TOTAL_AMT,FFUND_CODE,TBOR_AUXSREC_FUND,NOTHER OPERATIONS
B2: Kennesaw State University
B3: Auxiliary Services | Z3: AUXSREC
B4: Statement of Revenue, Expenses, and Changes in Net Position - Actuals Ledger Only
B5: ="For the Year Ended: "&TEXT(ASD,"mmmm dd, yyyy") -> For the Year Ended: June 30, 2016 | Z5: JBFREEMAN
C6: Information for this report will come from Actuals Ledger only | Z6: 2016-06-30
G7: Residence | I7: Stores and | K7: Food | Q7: Health | S7: Intercollegiate | Z7: GASB_SRECNP_AUX
G8: Halls | I8: Shops | K8: Services | M8: Parking | O8: Transportation | Q8: Services | S8: Athletics | U8: Other | W8: Total | Z8: /opt/psoft/psconfig/appserv/prcs/fprod/NVISION/INSTANCE
E9: Fund numbers: | G9: 12210 | I9: 12230 | K9: 12220 | M9: 12250 | O9: 12260 | Q9: 12240 | S9: 12280 | U9: 12270
C10: REVENUES
C11: Operating Revenues
A12: %,R,FACCOUNT,TBOR_AUXSREC_ACCT,NAUXILIARY ENTERPRISE | C12: Sales and services | E12: 40xxxx -> 479999 | G12: 16550764.98 | I12: 15178645.29 | K12: 26500273.85 | M12: 9806644.49 | O12: 4285324.01 | Q12: 3384931.75 | S12: 14629503.56 | U12: 626743.17 | W12: =SUM(G12:U12) -> 90962831.1 | Y12: 40xxxx -> 479999
A13: %,FACCOUNT,TBOR_AUXSREC_ACCT,NCOST_OF_GOODS | C13: Less: Cost of Goods Sold | E13: 7031xx | G13: 0 | I13: 10856726.52 | K13: 33630.69 | M13: 0 | O13: 0 | Q13: 0 | S13: 0 | U13: 0 | W13: =SUM(G13:U13) -> 10890357.21 | Y13: 7031xx
C14: Gross Margin | G14: =SUM(G12-G13) -> 16550764.98 | I14: =SUM(I12-I13) -> 4321918.77 | K14: 26466643.16 | M14: 9806644.49 | O14: 4285324.01 | Q14: 3384931.75 | S14: 14629503.56 | U14: 626743.17 | W14: =SUM(G14:U14) -> 80072473.89
C16: Expenses
C17: Operating expenses
C18: Salaries
A19: %,FACCOUNT,TBOR_AUXSREC_ACCT,NFACULTY SALARY | C19: Faculty | E19: 51xxxx, 53xxxx | G19: 0 | I19: 0 | K19: 0 | M19: 0 | O19: 0 | Q19: 0 | S19: 4550 | U19: 0 | W19: 4550 | Y19: 51xxxx, 53xxxx
A20: %,FACCOUNT,TBOR_AUXSREC_ACCT,NSTAFF SALARY | C20: Staff | E20: 52xxxx,54xxxx | G20: 1236132.31 | I20: 1729414.1 | K20: 764569.22 | M20: 325578.29 | O20: 97580.91 | Q20: 250281.29 | S20: 5208830.62 | U20: 1035782.13 | W20: 10648168.87 | Y20: 52xxxx,54xxxx
A21: %,FACCOUNT,TBOR_AUXSREC_ACCT,NBENEFITS | C21: Benefits | E21: 55xxxx | G21: 344397.38 | I21: 381313.36 | K21: 279065.43 | M21: 136454.7 | O21: 28634.95 | Q21: 64368.7 | S21: 1650342.68 | U21: 275904.7 | W21: 3160481.9 | Y21: 55xxxx
A22: %,FACCOUNT,TBOR_AUXSREC_ACCT,NOTHER PER SERVICES | C22: Other Personal Services | E22: 56xxxx, 59xxxx, 723xxx | G22: -576 | I22: 352508.02 | K22: 431382.96 | M22: 230131.67 | O22: 83289.55 | Q22: 600 | S22: 172336.41 | U22: -1077987.2 | W22: 191685.41 | Y22: 56xxxx, 59xxxx, 723xxx
A23: %,FACCOUNT,TBOR_AUXSREC_ACCT,NCONTRACTS | C23: Contractual services | E23: 753xxx | G23: 153006.96 | I23: 14829.62 | K23: 21490345.99 | M23: 1059201.96 | O23: 2198419.79 | Q23: 2994199 | S23: 183 | U23: 163179.45 | W23: 28073365.77 | Y23: 753xxx
A24: %,FACCOUNT,TBOR_AUXSREC_ACCT,NTRAVEL_EMP | C24: Travel | E24: 6xxxxx,except 65xxxx | G24: 35121.41 | I24: 19833.32 | K24: 2189.22 | M24: 14122.38 | O24: 270.66 | Q24: 1216.36 | S24: 0 | U24: 13029.47 | W24: 85782.82 | Y24: 6xxxxx,except 65xxxx
A25: %,FACCOUNT,TBOR_AUXSREC_ACCT,NSCHOLARSHIPS | C25: Scholarships and Fellowships | E25: 78xxxx | G25: 0 | I25: 0 | K25: 0 | M25: 0 | O25: 0 | Q25: 0 | S25: 3502831.85 | U25: 0 | W25: 3502831.85 | Y25: 78xxxx
A26: %,FACCOUNT,TBOR_AUXSREC_ACCT,NSUPPLIES_AUX | C26: General material and supplies | E26: 65xxxx,7xxxxx, 8xxxxx,91xxxx ->959999 except (7031xx,717xxx,723xxx, 751xxx, 752xxx, 753xxx, 771xxx, 78xxxx, 8182xx,89xxxx, 911xxx, 921xxx) | G26: 3754600.834 | I26: 1487100.853 | K26: 2686561.158 | M26: 1419568.08 | O26: 433799.475 | Q26: 19117.863 | S26: 4180932.178 | U26: -118279.949 | W26: 13863400.49 | Y26: 65xxxx,7xxxxx, 8xxxxx,91xxxx ->959999 except (7031xx,717xxx,723xxx, 751xxx, 752xxx, 753xxx, 771xxx, 78xxxx, 8182xx,89xxxx, 911xxx, 921xxx)
A27: %,FACCOUNT,TBOR_AUXSREC_ACCT,NPER_DIEM_AND_FEES | C27: Consulting expenses/per diem | E27: 751xxx, 752xxx | G27: 172238.11 | I27: 52506.1 | K27: 438805.02 | M27: 40476.97 | O27: 66723.44 | Q27: 552 | S27: 501 | U27: 63368.68 | W27: 835171.32 | Y27: 751xxx, 752xxx
A28: %,FACCOUNT,TBOR_AUXSREC_ACCT,NUTILITIES | C28: Utilities | E28: 771xxx, 717xxx | G28: 697929.69 | I28: 13278.09 | K28: 398360.06 | M28: 175250.51 | O28: 3533.43 | Q28: 5556.55 | S28: 17956.59 | U28: 5873.68 | W28: 1317738.6 | Y28: 771xxx, 717xxx
A29: %,FACCOUNT,TBOR_AUXSREC_ACCT,NDEPRECIATION | C29: Depreciation | E29: 8901xx, 890900 | G29: 5502598.24 | I29: 193516.05 | K29: 964431 | M29: 5113111.83 | O29: 7159.87 | Q29: 44299.76 | S29: 259561.29 | U29: 77303.92 | W29: 12161981.96 | Y29: 8901xx, 890900
C30: Total operating expenses | G30: =SUM(G19:G29) -> 11895448.93 | I30: =SUM(I19:I29) -> 4244299.513 | K30: 27455710.06 | M30: =SUM(M19:M29) -> 8513896.39 | O30: 2919412.075 | Q30: 3380191.523 | S30: 14998025.62 | U30: 438174.881 | W30: 73845158.99
C31: Operating income (loss) | G31: =SUM(G14-G30) -> 4655316.046 | I31: =SUM(I14-I30) -> 77619.257 | K31: -989066.898 | M31: =SUM(M14-M30) -> 1292748.1 | O31: 1365911.935 | Q31: 4740.227 | S31: -368522.058 | U31: 188568.289 | W31: 6227314.898
C33: NONOPERATING REVENUES(EXPENSES)
A34: %,R,FACCOUNT,TBOR_AUXSREC_ACCT,NSTATE_APPROPS | C34: State appropriations | E34: 4801xx | G34: 0 | I34: 0 | K34: 0 | M34: 0 | O34: 0 | Q34: 0 | S34: 0 | U34: 0 | W34: 0 | Y34: 4801xx
A35: %,R,FACCOUNT,TBOR_AUXSREC_ACCT,NGRANTS | C35: Grants and Contracts | E35: 491xxx, 494xxx | G35: 0 | I35: 0 | K35: 0 | M35: 0 | O35: 0 | Q35: 0 | S35: 0 | U35: 0 | W35: 0 | Y35: 491xxx, 494xxx | Z35: Add: 4211xx, 4212xx, 4213xx,491900
A36: %,R,FACCOUNT,TBOR_AUXSREC_ACCT,NINTEREST INCOME | C36: Interest income | E36: 481xxx -> 484xxx, 486xxx, 487xxx, 488xxx, 489xxx, 490xxx, 4932xx, 4934xx, 4951xx | G36: 8178.51 | I36: 0 | K36: 0 | M36: 3383.58 | O36: 5992.92 | Q36: 0 | S36: 0 | U36: 1875.91 | W36: 19430.92 | Y36: 481xxx -> 484xxx, 486xxx, 487xxx, 488xxx, 489xxx, 490xxx, 4932xx, 4934xx, 4951xx
A37: %,R,FACCOUNT,TBOR_AUXSREC_ACCT,NINTEREST EXPENSE | C37: Interest expense | E37: 8182xx | G37: -5329311.18 | I37: 0 | K37: -1206229.15 | M37: -3657369.882 | O37: 0 | Q37: -31706.11 | S37: -137308.31 | U37: -910.55 | W37: -10362835.18 | Y37: 8182xx
A38: %,R,FACCOUNT,TBOR_AUXSREC_ACCT,NGIFTS_AND_GRANTS | C38: Gifts, non-capital | E38: 485xxx except (4852xx, 4854xx, 4856xx, 4858xx) | G38: 0 | I38: 0 | K38: 0 | M38: 0 | O38: 0 | Q38: 0 | S38: 0 | U38: 0 | W38: 0 | Y38: 485xxx except (4852xx, 4854xx, 4856xx, 4858xx)
A39: %,R,FACCOUNT,TBOR_AUXSREC_ACCT,NSTATE_GIFTS_CAPITAL | C39: Gifts, capital | E39: 4852xx, 4854xx, 4856xx, 4858xx | G39: 3582189.42 | I39: 0 | K39: 7811.08 | M39: 0 | O39: 0 | Q39: 0 | S39: 0 | U39: 0 | W39: 3590000.5 | Y39: 4852xx, 4854xx, 4856xx, 4858xx
A40: %,R,FACCOUNT,TBOR_AUXSREC_ACCT,NMISC_REVENUE | C40: Miscellaneous revenues | E40: 49xxxx, except (490xxx, 491xxx, 4932xx, 4934xx, 494xxx, 4951xx) | F40: D | G40: 70379.93 | I40: 0 | K40: -6533.31 | M40: 0 | O40: -7673.19 | Q40: 0 | S40: -7988.05 | U40: -10523.31 | W40: 37662.07 | Y40: 49xxxx except (490xxx, 491xxx, 4932xx, 4934xx, 494xxx, 4951xx, 498998)
C41: Total nonoperating revenues | G41: =SUM(G34:G40) -> -1668563.32 | I41: =SUM(I34:I40) -> 0 | K41: =SUM(K34:K40) -> -1204951.38 | M41: =SUM(M34:M40) -> -3653986.302 | O41: =SUM(O34:O40) -> -1680.27 | Q41: =SUM(Q34:Q40) -> -31706.11 | S41: =SUM(S34:S40) -> -145296.36 | U41: =SUM(U34:U40) -> -9557.95 | W41: -6715741.692
C42: Income before transfers | G42: =SUM(G31+G41) -> 2986752.726 | I42: =SUM(I31+I41) -> 77619.257 | K42: =SUM(K31+K41) -> -2194018.278 | M42: =SUM(M31+M41) -> -2361238.202 | O42: =SUM(O31+O41) -> 1364231.665 | Q42: =SUM(Q31+Q41) -> -26965.883 | S42: =SUM(S31+S41) -> -513818.418 | U42: =SUM(U31+U41) -> 179010.339 | W42: -488426.794
C44: Transfers
A45: %,FACCOUNT,TBOR_AUXSREC_ACCT,NMANDATORY TRANSFER | C45: Mandatory Transfers | E45: 911xxx | G45: 0 | I45: 0 | K45: 0 | M45: 0 | O45: 0 | Q45: 0 | S45: 0 | U45: 0 | W45: 0 | Y45: 911xxx
A46: %,FACCOUNT,TBOR_AUXSREC_ACCT,NNON MANDATORY TRANS | C46: Non Mandatory Transfers | E46: 921xxx | G46: -241427.82 | I46: 12045.04 | K46: 142031.08 | M46: 0 | O46: 0 | Q46: 0 | S46: 0 | U46: 547452.76 | W46: 460101.06 | Y46: 921xxx
C47: Total Transfers | G47: =SUM(G45+G46) -> -241427.82 | I47: =SUM(I45+I46) -> 12045.04 | K47: =SUM(K45+K46) -> 142031.08 | M47: =SUM(M45+M46) -> 0 | O47: =SUM(O45+O46) -> 0 | Q47: =SUM(Q45+Q46) -> 0 | S47: =SUM(S45+S46) -> 0 | U47: =SUM(U45+U46) -> 547452.76 | W47: 460101.06
C49: Change in Net Position | G49: =SUM(G42+G47) -> 2745324.906 | I49: =SUM(I42+I47) -> 89664.297 | K49: =SUM(K42+K47) -> -2051987.198 | M49: =SUM(M42+M47) -> -2361238.202 | O49: =SUM(O42+O47) -> 1364231.665 | Q49: =SUM(Q42+Q47) -> -26965.883 | S49: =SUM(S42+S47) -> -513818.418 | U49: =SUM(U42+U47) -> 726463.099 | W49: -28325.734
C51: Net Position
A52: %,R,FACCOUNT,TBOR_AUXSREC_ACCT,NNET ASSETS | C52: Net position-beginning of year | E52: 3xxxxx period 0 through period 12 | G52: 2723577.38 | I52: 8141490.62 | K52: -5282682.263 | M52: 1785304.456 | O52: -4639088.88 | Q52: 1046923.93 | S52: 5265243.684 | U52: -362178.02 | W52: 8678590.907 | Y52: 3xxxxx period 0 through period 12
C53: Net position-end of year | E53: (Calculated) | G53: =SUM(G49,G52) -> 5468902.286 | I53: =SUM(I49,I52) -> 8231154.917 | K53: =SUM(K49,K52) -> -7334669.461 | M53: =SUM(M49,M52) -> -575933.746 | O53: =SUM(O49,O52) -> -3274857.215 | Q53: =SUM(Q49,Q52) -> 1019958.047 | S53: =SUM(S49,S52) -> 4751425.266 | U53: =SUM(U49,U52) -> 364285.079 | W53: =SUM(W49,W52) -> 8650265.173 | Y53: (Calculated)
C54: (equal to 3xxxxx period 0 next year)
C74: Version 9.2 | G74: 5.14
B76: Change Information
C77: Release | G77: Date | I77: Developer | K77: Change Request and Details
G78: 2008-05-01 | I78: Lina | K78: tsk 40394
C79: 1.09 | G79: 2009-02-10 | I79: Lina | K79: tsk 45361 | O79: performance tuning
C80: 1.1 | G80: 2009-03-04 | I80: Lina | K80: tsk 49276 | O80: FY09 changes
C81: 1.10a | G81: 2009-06-02 | I81: Lina | K81: RFC347 | O81: Add: 4211xx, 4212xx, 4213xx,4919xx to grants and Contracts
C82: 2.09 | G82: 2009-11-17 | I82: Lina | K82: RFC4796;TSK5305
C83: 2.12 | G83: 2010-02-08 | I83: Lina | K83: RFC3010;TSK6940
C84: 2.18 | G84: 2011-03-10 | I84: Michael Campbell | K84: mst11521_tsk11699 | O84: Removed 560000 to 569999 detail from other per services tree node.
O85: 566000 to 566999 was placed the query and left in tree to restrict this account range to specific years. See the query to regulate these accounts.
C86: 2.7 | G86: 2013-04-12 | I86: RMullinix | K86: TSK18707 | O86: Wording changes
C87: 4 | G87: 2015-01-08 | I87: Robert Prescott | K87: TSK22521 | O87: 9.2 Upgrade
C88: 5 | G88: 2015-09-30 | I88: RMullinix | K88: TSK26266 | O88: prepare for switch to unix processing
C89: 5.13 | G89: 2016-04-04 | I89: Yvonne Howington | K89: TSK27576 | O89: created new trees for report, modified query, split out parking and transportation
C90: 5.14 | G90: 2016-05-16 | I90: Michael Paktinat | K90: tsk27812

Sheet Student Act SNP-Actuals Ledg
A1: %,FFUND_CODE,TBOR_SASNP_FUND,NSTUDENT ACTIVITIES | D1: %,QBOR_GASB_LEDGER_NVS,CA.POSTED_TOTAL_AMT,S2YEAR | F1: %,QBOR_GASB_LEDGER_NVS,CA.POSTED_TOTAL_AMT,S2YR-1
B2: ="FY" &(TEXT(ASD,"YYYY")) -> FY2016
B3: Kennesaw State University
B4: Student Activities Statement of Net Position - Actuals Ledger Only | G4: SASNP
B5: ="June 30, " &(TEXT(ASD,"YYYY")) -> June 30, 2016 | G5: JBFREEMAN
G6: 2016-06-30
B7: Information for this report will come from Actuals Ledger only | G7: SA_STATEMENT_OF_NET_POSITION
B8: Assets | D8: ="June 30, " &(TEXT(ASD,"YYYY")) -> June 30, 2016 | F8: ="June 30, "&(TEXT(ASD,"YYYY")-1) -> June 30, 2015 | G8: /opt/psoft/psconfig/appserv/prcs/fprod/NVISION/INSTANCE | K8: Fund 13xxx Only
B9: Current Assets
A10: %,FACCOUNT,TBOR_SASNP_ACCT,NCASH AND CASH EQUIV | B10: Cash and cash equivalents | D10: 19717255.46 | F10: 19231857.58 | K10: 111xxx,112xxx,1181xx,118200,1185xx, 1191xx, 1192xx, 1193xx,1194xx
A11: %,FACCOUNT,TBOR_SASNP_ACCT,NSHORTTERM INVESTMENT | B11: Short-term investments | D11: 0 | F11: 0 | K11: 1198xx
B12: Accounts receivable, net
A13: %,FACCOUNT,TBOR_SASNP_ACCT,NREC FED FIN ASSIST | B13: Rec.-Federal Financial Assistance | D13: 0 | F13: 0 | K13: 124xxx
A14: %,FACCOUNT,TBOR_SASNP_ACCT,NREC STATE GEN APPROP | B14: Rec. State General Appropriations | D14: 0 | F14: 0 | K14: 123xxx
A15: %,FACCOUNT,TBOR_SASNP_ACCT,NREC OTHER | B15: Rec.- Other | D15: 32070.68 | F15: 201731.25 | K15: 12xxxx (except for 122xxx, 123xxx, 124xxx, 1260xx, 1268xx,1269xx)
A16: %,FACCOUNT,TBOR_SASNP_ACCT,NDUE_AFFILIATED_ORG | B16: Due From Affiliated Organizations | D16: 94625 | F16: 72223.59 | K16: 1268xx
A17: %,FACCOUNT,TBOR_SASNP_ACCT,NINVENTORIES | B17: Inventories | D17: 0 | F17: 0 | K17: 141xxx, and 142xxx
A18: %,FACCOUNT,TBOR_SASNP_ACCT,NPREPAID ITEMS | B18: Prepaid Items | D18: 13836.92 | F18: 8303.47 | K18: 13xxxx
A19: %,FACCOUNT,TBOR_SASNP_ACCT,NOTHER ASSETS | B19: Other assets | D19: 0 | F19: 0 | K19: 1260xx, 2180xx
B20: Total Current Assets | D20: =SUM(D10:D19) -> 19857788.06 | F20: =SUM(F10:F19) -> 19514115.89
B22: Noncurrent Assets
A23: %,FACCOUNT,TBOR_SASNP_ACCT,NNONCURRENT CASH | B23: Noncurrent Cash (Externally Restricted) | D23: 0 | F23: 0 | K23: 1580xx, 1581xx
A24: %,FACCOUNT,TBOR_SASNP_ACCT,NSHORT TERM INVEST | B24: Short-Term Investments (Externally Restricted) | D24: 0 | F24: 0 | K24: 1582xx
A25: %,FACCOUNT,TBOR_SASNP_ACCT,NDUE AFFILIATED ORG | B25: Due From Affiliated Organizations | D25: 0 | F25: 0 | K25: 1269xx (Except 126960 and 126970)
A26: %,FACCOUNT,TBOR_SASNP_ACCT,NDUE FROM USO | B26: Due From USO - Capital Liability Reserve Fund | D26: 669977.52 | F26: 669977.52 | K26: 126960
A27: %,FACCOUNT,TBOR_SASNP_ACCT,NDUE FROM INSTITUTION | B27: Due From Institutions - Capital Liability Reserve Fund | D27: 0 | F27: 0 | K27: 126970
A28: %,FACCOUNT,TBOR_SASNP_ACCT,NINVESTMENTS | B28: Investments | D28: 0 | F28: 0 | K28: 15xxxx (except 158xxx)
A29: %,FACCOUNT,TBOR_SASNP_ACCT,NNOTES RECEIVABLE | B29: Notes receivable, net | D29: 0 | F29: 0 | K29: 122xxx
A30: %,FACCOUNT,TBOR_SASNP_ACCT,NCAPITAL ASSETS | B30: Capital assets, net | D30: 104583431.6 | F30: 102489481.3 | K30: 16xxxx
B31: Other assets
B32: Total Noncurrent Assets | D32: =SUM(D23:D31) -> 105253409.2 | F32: =SUM(F23:F31) -> 103159458.8
B33: TOTAL ASSETS | D33: =SUM(D20+D32) -> 125111197.2 | F33: =SUM(F20+F32) -> 122673574.7
B35: Deferred Outflows of Resources
A36: %,FACCOUNT,TBOR_SASNP_ACCT,NDEFERRED DEBT REF | B36: Deferred Amount on Debt Refunding | D36: 0 | F36: 0 | K36: 170100
A37: %,FACCOUNT,TBOR_SASNP_ACCT,NDEFERRED PENSION | B37: Deferred Amount on Defined Benefit Pension Plan | D37: 0 | F37: 0 | K37: 170200
A38: %,FACCOUNT,TBOR_SASNP_ACCT,NDEFERRED REV OTHER | B38: Other Deferred Outflows of Resources | D38: 0 | F38: 0 | K38: 1700xx, 170900
B39: Total Deferred Outflows of Resources | D39: =SUM(D36:D38) -> 0 | F39: =SUM(F36:F38) -> 0
B41: LIABILITIES
B42: Current Liabilities
A43: %,R,FACCOUNT,TBOR_SASNP_ACCT,NACCOUNTS PAYABLE | B43: Accounts Payable | D43: 530269.902 | F43: 451767.19 | K43: 2110xx, 2114xx, 2115xx, 2116xx,2118xx, 211999, 2122xx, 213xxx, 215xxx, 2198xx, 2199xx, 221xxx, 222xxx, 223xxx, 224xxx, 225xxx, 226xxx, 227xxx, 228xxx, 229xxx, 2182xx, 2185xx, 2187xx
A44: %,R,FACCOUNT,TBOR_SASNP_ACCT,NSALARIES PAYABLE | B44: Salaries Payable | D44: 5115.52 | F44: 9679.68 | K44: 2121xx
A45: %,R,FACCOUNT,TBOR_SASNP_ACCT,NBENEFITS | B45: Benefits Payable | D45: 0 | F45: 0 | K45: 23xxxx, 291700
A46: %,R,FACCOUNT,TBOR_SASNP_ACCT,NCONTRACTS PAYABLE | B46: Contracts Payable | D46: 0 | F46: 3247 | K46: 2119xx except 21195x, 21197x, and 211999
A47: %,R,FACCOUNT,TBOR_SASNP_ACCT,NRETAINAGES_PAYABLE | B47: Retainages Payable | D47: 0 | F47: 0 | K47: 21195x and 21197x
A48: %,R,FACCOUNT,TBOR_SASNP_ACCT,NDEPOSITS | B48: Deposits | D48: 0 | F48: 0 | K48: 214xxx
A49: %,R,FACCOUNT,TBOR_SASNP_ACCT,NDEFERRED REVENUE | B49: Advances (Including Tuition & Fees) | D49: 986613.06 | F49: 819092.22 | K49: 216xxx,217xxx
A50: %,R,FACCOUNT,TBOR_SASNP_ACCT,NOTHER LIABILITIES | B50: Other liabilities | D50: 0 | F50: 0 | K50: 2191xx except for 219101, 219102, 219103, 219104, 219105
A51: %,R,FACCOUNT,TBOR_SASNP_ACCT,NDEPOSITS FOR OTHERS | B51: Deposits held for other organizations | D51: 0 | F51: 0 | K51: 24xxxx,25xxxx
A52: %,R,FACCOUNT,TBOR_SASNP_ACCT,NLEASE PURCHASE | B52: Lease Purchase Obligations | D52: 1535954.73 | F52: 1282372.9 | K52: 2194xx
A53: %,R,FACCOUNT,TBOR_SASNP_ACCT,NCOMP ABSENCE | B53: Compensated absences | D53: 105379.54 | F53: 73326.21 | K53: 2871xx
A54: %,R,FACCOUNT,TBOR_SASNP_ACCT,NDUE_2_AFFILIATED_ORG | B54: Due to Affiliated Organizations | D54: 1720 | F54: 0 | K54: 2188xx
A55: %,R,FACCOUNT,TBOR_SASNP_ACCT,NDUE_2_USO | B55: Due to USO - Capital Liability Reserve Fund | D55: 0 | F55: 0 | K55: 218100
A56: %,R,FACCOUNT,TBOR_SASNP_ACCT,NNOTES PAYABLE | B56: Notes and Loans Payable | D56: 0 | F56: 0 | K56: 2195xx
A57: %,R,FACCOUNT,TBOR_SASNP_ACCT,NPOLLUTION_REMED_CURR | B57: Pollution Remediation | D57: 0 | F57: 0 | K57: 219101
A58: %,R,FACCOUNT,TBOR_SASNP_ACCT,NCLAIMS AND JUDGEMENT | B58: Claims and Judgements | D58: 0 | F58: 0 | K58: 219103
B59: Total Current Liabilities | D59: =SUM(D43:D58) -> 3165052.752 | F59: =SUM(F43:F58) -> 2639485.2
B60: Noncurrent Liabilities
A61: %,R,FACCOUNT,TBOR_SASNP_ACCT,NLEASE PURCHASE NC | B61: Lease Purchase Obligations | D61: 104757474.9 | F61: 104606873 | K61: 2911xx
A62: %,R,FACCOUNT,TBOR_SASNP_ACCT,NADVANCES | B62: Advances (Including Tuition & Fees) | D62: 0 | F62: 0 | K62: 2913xx,2914xx
A63: %,R,FACCOUNT,TBOR_SASNP_ACCT,NCOMP ABSENCES | B63: Compensated Absences | D63: 46305.95 | F63: 41234.39 | K63: 2971xx
A64: %,R,FACCOUNT,TBOR_SASNP_ACCT,NDUE TO USO NC | B64: Due to USO - Capital Liability Reserve Fund | D64: 0 | F64: 0 | K64: 218101
A65: %,R,FACCOUNT,TBOR_SASNP_ACCT,NNET PENSION LIAB | B65: Net Pension Liability | D65: 0 | F65: 0 | K65: 2915xx
A66: %,R,FACCOUNT,TBOR_SASNP_ACCT,NOTHER POST EMP BENEF | B66: Other Post-Employement Benefit Liability | D66: 0 | F66: 0 | K66: 291600
A67: %,R,FACCOUNT,TBOR_SASNP_ACCT,NOTHER LIABILITIES NC | B67: Other liabilities | D67: 0 | F67: 0 | K67: 219105
A68: %,R,FACCOUNT,TBOR_SASNP_ACCT,NDUE_2_AFFIL_ORG_NC | B68: Due To Affiliated Organizations | D68: 0 | F68: 0 | K68: 2189xx
A69: %,R,FACCOUNT,TBOR_SASNP_ACCT,NNOTES AND LOANS NC | B69: Notes and Loans Payable | D69: 0 | F69: 0 | K69: 2912xx
A70: %,R,FACCOUNT,TBOR_SASNP_ACCT,NPOLLUTION_REMED | B70: Pollution Remediation | D70: 0 | F70: 0 | K70: 219102
A71: %,R,FACCOUNT,TBOR_SASNP_ACCT,NCLAIMS AND JUDGE NC | B71: Claims and Judgements | D71: 0 | F71: 0 | K71: 219104
B72: Total Noncurrent Liabilities (Note 8) | D72: =SUM(D61:D71) -> 104803780.9 | F72: =SUM(F61:F71) -> 104648107.4
B73: TOTAL LIABILITIES | D73: =SUM(D59+D72) -> 107968833.6 | F73: =SUM(F59+F72) -> 107287592.6
B75: Deferred Inflows of Resources
A76: %,R,FACCOUNT,TBOR_SASNP_ACCT,NDEFERRED GAIN DEBT | B76: Deferred gain on debt refunding | D76: 0 | F76: 0 | K76: 2981xx
A77: %,R,FACCOUNT,TBOR_SASNP_ACCT,NDEFERRED GRANTS REC | B77: Deferred Grants Received in Adv of Timing Requirements | D77: 0 | F77: 0 | K77: 2984xx
A78: %,R,FACCOUNT,TBOR_SASNP_ACCT,NDEFERRED SERVICE CON | B78: Deferred service concession arrangement receipts | D78: 0 | F78: 0 | K78: 2983xx
A79: %,R,FACCOUNT,TBOR_SASNP_ACCT,NDEFERRED DEFINED BEN | B79: Deferred Defined Benefit Pension Plan | D79: 0 | F79: 0 | K79: 2982xx
A80: %,R,FACCOUNT,TBOR_SASNP_ACCT,NDEFERRED OTHER | B80: Other Deferred Inflows of Resources | D80: 0 | F80: 0 | K80: 2980xx, 2989xx
B81: Total Deferred Inflows of Resources | D81: =SUM(D76:D80) -> 0 | F81: =SUM(F76:F80) -> 0
B82: NET POSITION
A83: %,R,FACCOUNT,TBOR_SASNP_ACCT,NNET INVEST CAP ASSET,SPER0to999 | B83: Net Investment in Capital Assets | D83: -1709998.811 | F83: -3399764.591 | K83: 311xxx
B84: Restricted for
A85: %,R,FACCOUNT,TBOR_SASNP_ACCT,NNONEXPENDABLE | B85: Nonexpendable | D85: 0 | F85: 0 | K85: 360xxx
A86: %,R,FACCOUNT,TBOR_SASNP_ACCT,NEXPENDABLE | B86: Expendable | D86: 0 | F86: 0 | K86: 371xxx
A87: %,R,FACCOUNT,TBOR_SASNP_ACCT,NUNRESTRICTED,SPER0to999 | B87: Unrestricted | D87: 18852362.41 | F87: 18785746.72 | K87: 321xxx,322xxx,323xxx,329xxx,34xxxx
B88: TOTAL NET POSITION | D88: =SUM(D83:D87) -> 17142363.6 | F88: =SUM(F83:F87) -> 15385982.13
B104: Version | D104: 5.16
B106: Change Information
B107: Release | D107: Date | E107: Developer | G107: Change Request and Details
B108: 4.1 | D108: 2015-02-10 | F108: Robert Prescott | J108: TSK24278 | K108: New Report
B109: 4.3 | D109: 2015-05-07 | F109: Robin Mullinix | J109: TSK24278 | K109: Update Report with Mapping document changes made to the regular SNP
B110: 5 | D110: 2015-09-30 | F110: RMullinix | J110: TSK26266 | K110: prepare for switch to unix processing
B111: 5.13 | D111: 2016-04-14 | F111: Yvonne Howington | J111: TSK27616 | K111: Extensive changes and new trees
B112: 5.14 | D112: 2016-05-12 | F112: Mpaktinat | J112: tsk27802 | K112: Update Accounts Payable mapping to include account 2118xx
B113: 5.16 | D113: 2016-07-12 | F113: Mpaktinat | J113: tsk28251 | K113: delete the row for Investment (Externally Restricted)

Sheet Student Act SRECNP-Actuals Ledg
A1: %,QBOR_GASB_LEDGER_NVS,CA.POSTED_TOTAL_AMT,FFUND_CODE,TBOR_SASRECNP_FUND,NSTUDENT ACTIVITIES | D1: %,S2YEAR | F1: %,S2YR-1
B2: Kennesaw State University | K2: SASRECNP
B3: Student Activities Statement of Revenue Expenses and Changes in Net Position - Actuals Ledger Only | K3: SA_SRECNP
B4: ="Fiscal Year Ended: "&TEXT(ASD,"mmmm dd, yyyy") -> Fiscal Year Ended: June 30, 2016 | K4: JBFREEMAN
B5: Information for this report will come from Actuals Ledger only | K5: 2016-06-30
D6: Current Year | F6: Prior Year | K6: /opt/psoft/psconfig/appserv/prcs/fprod/NVISION/INSTANCE
D7: ="June 30, " &(TEXT(ASD, "yyyy")) -> June 30, 2016 | F7: ="June 30, " &(TEXT(ASD,"yyyy") - 1) -> June 30, 2015 | I7: Fund 13xxx Only
B9: Revenues
B10: Operating Revenues
A12: %,R,FACCOUNT,TBOR_SASRECNP_ACCT,NTUITION_AND_FEES | B12: Student tuition and fees (net) | D12: 14903511.44 | F12: 12659638.68 | I12: 40xxxx, 453xxx, and 454xxx
A13: %,R,FACCOUNT,TBOR_SASRECNP_ACCT,NFEDERAL APPROP | B13: Federal appropriations | D13: 0 | F13: 0 | I13: 4111xx
B14: Grants and Contracts
A15: %,R,FACCOUNT,TBOR_SASRECNP_ACCT,NFEDERAL GRANTS | B15: Federal | D15: 0 | F15: 0 | I15: 421xxx, 4721xx, 425998
A16: %,R,FACCOUNT,TBOR_SASRECNP_ACCT,NSTATE GRANTS CONTRAC | B16: State | D16: 0 | F16: 0 | I16: 422xxx, and 4722xx
A17: %,R,FACCOUNT,TBOR_SASRECNP_ACCT,NOTHER | B17: Other | D17: 0 | F17: 0 | I17: 423xxx and 4723xx , 424xxx and 4724xxx
A18: %,R,FACCOUNT,TBOR_SASRECNP_ACCT,NSALES AND SERVICES | B18: Sales and Services | D18: 0 | F18: 0 | I18: 441xxx, 449xxx, 452xxx, 4600xx
A19: %,R,FACCOUNT,TBOR_SASRECNP_ACCT,NRENTS AND ROYALTIES | B19: Rents and Royalties | D19: 202677.69 | F19: 15 | I19: 451xxx
A20: %,R,FACCOUNT,TBOR_SASRECNP_ACCT,NOTHER REVENUE | B20: Other operating revenues | D20: 205516.33 | F20: 314934.63 | I20: 4131xx,442xxx,470xxx, 473xxx, 478xxx
B21: TOTAL OPERATING REVENUE | D21: =SUM(D12:D20) -> 15311705.46 | F21: =SUM(F12:F20) -> 12974588.31
B23: Expenses
B24: Operating expenses
B25: Salaries:
A26: %,FACCOUNT,TBOR_SASRECNP_ACCT,NFACULTY SALARY | B26: Faculty | D26: 5950 | F26: 8001.38 | I26: 51xxxx, 53xxxx
A27: %,FACCOUNT,TBOR_SASRECNP_ACCT,NSTAFF SALARY | B27: Staff | D27: 3241996.78 | F27: 1969116.3 | I27: 52xxxx, 54xxxx
A28: %,FACCOUNT,TBOR_SASRECNP_ACCT,NBENEFITS | B28: Benefits | D28: 613824.58 | F28: 435134.65 | I28: 55xxxx
A29: %,FACCOUNT,TBOR_SASRECNP_ACCT,NOTHER PER SERVICES | B29: Other personal services | D29: 17450 | F29: 19607.81 | I29: 56xxxx, 59xxxx,723xxx
A30: %,FACCOUNT,TBOR_SASRECNP_ACCT,NTRAVEL | B30: Travel | D30: 98156.4 | F30: 122134.08 | I30: 6xxxxx (except 65xxxx)
A31: %,FACCOUNT,TBOR_SASRECNP_ACCT,NSCHOLARSHIP_FELLOWS | B31: Scholarships and fellowships | D31: 605315.74 | F31: 830675.12 | I31: 78xxxx
A32: %,FACCOUNT,TBOR_SASRECNP_ACCT,NUTILITIES | B32: Utilities | D32: 338711.08 | F32: 52327.65 | I32: 717xxx,771xxx
A33: %,FACCOUNT,TBOR_SASRECNP_ACCT,NSUPPLIES | B33: Supplies and other services | D33: 4125476.361 | F33: 4243642.28 | I33: 65xxxx,700xxx,702xxx->704xxx, 712xxx,714xxx,715xxx,719xxx->722xxx, 724xxx, 725xxx, 726xxx, 727xxx, 733xxx, 734xxx, 735xxx, 742xxx -> 744xxx, 748xxx, 753xxx, 798xxx, 799990,800000 -> 889xxx (except 8182xx), 9xxxxx (except 99999x),4711xx, 7281xx
A34: %,FACCOUNT,TBOR_SASRECNP_ACCT,NPER DIEM & FEES | B34: Consulting Expenses/per diem | D34: 120142.65 | F34: 339163.97 | I34: 751xxx, 752xxx
A35: %,FACCOUNT,TBOR_SASRECNP_ACCT,NDEPRECIATION | B35: Depreciation | D35: 2886340.54 | F35: 2284981.63 | I35: 8901xx, 890900
B36: TOTAL OPERATING EXPENSES | D36: =SUM(D26:D35) -> 12053364.13 | F36: =SUM(F26:F35) -> 10304784.87
B37: OPERATING INCOME (LOSS) | D37: =D21-D36 -> 3258341.329 | F37: =F21-F36 -> 2669803.44
B39: Nonoperating Revenues/Expenses
A40: %,R,FACCOUNT,TBOR_SASRECNP_ACCT,NSTATE APPROPRIATIONS | B40: State appropriations | D40: 0 | F40: 0 | I40: 4801xx, 4802xx
B41: Grants and Contracts
A42: %,R,FACCOUNT,TBOR_SASRECNP_ACCT,NEXP FED GRANTS | B42: Federal | D42: 0 | F42: 0 | I42: 4911xx, 4941xx
A43: %,R,FACCOUNT,TBOR_SASRECNP_ACCT,NEXP STATE GRANTS | B43: State | D43: 0 | F43: 0 | I43: 4912xx, 4942xx
A44: %,R,FACCOUNT,TBOR_SASRECNP_ACCT,NEXP OTHER | B44: Other | D44: 0 | F44: 0 | I44: 4913xx, 4914xx, 4943xx, 4944xx
A45: %,R,FACCOUNT,TBOR_SASRECNP_ACCT,NGIFTS | B45: Gifts | D45: 8877.88 | F45: 0 | I45: 4851xx,,4853xx,4855xx,4857xx,4859xx
A46: %,R,FACCOUNT,TBOR_SASRECNP_ACCT,NINVESTMENT INCOME | B46: Investment Income | D46: 83648.36 | F46: 82519.314 | I46: 481xxx->484xxx,4932xx, 486xxx>490xxx, 4934xx,4951xx
A47: %,R,FACCOUNT,TBOR_SASRECNP_ACCT,NINTEREST EXPENSE | B47: Interest expense | D47: -5181239.402 | F47: -5388863.08 | I47: 8182xx
A48: %,R,FACCOUNT,TBOR_SASRECNP_ACCT,NOTHER NONOPERATING | B48: Other nonoperating revenues and expenses | D48: 0 | F48: -4834.35 | I48: 492xxx,4931xx,4933xx,494500, 499xxx, 792xxx, 498998
B49: NET NONOPERATING REVENUES | D49: =SUM(D40:D48) -> -5088713.162 | F49: =SUM(F40:F48) -> -5311178.116
B50: INCOME BEFORE OTHER REVENUES, EXPENSES, GAINS, OR LOSS | D50: =SUM(D37+D49) -> -1830371.833 | F50: =SUM(F37+F49) -> -2641374.676
B52: Capital Grants and gifts
A53: %,R,FACCOUNT,TBOR_SASRECNP_ACCT,NCAP GRANTS FED | B53: Federal | D53: 0 | F53: 0 | I53: 4852xx
A54: %,R,FACCOUNT,TBOR_SASRECNP_ACCT,NCAP GRANTS STATE | B54: State | D54: 0 | F54: 0 | I54: 4854xx
A55: %,R,FACCOUNT,TBOR_SASRECNP_ACCT,NCAP GRANTS OTHER | B55: Other | D55: 48520.88 | F55: 0 | I55: 4856xx,4858xx
A56: %,R,FACCOUNT,TBOR_SASRECNP_ACCT,NSPECIAL ITEM | B56: Special Item | D56: 0 | F56: 0 | I56: 497xxx
B57: TOTAL OTHER REVENUES | D57: =SUM(D53:D56) -> 48520.88 | F57: =SUM(F53:F56) -> 0
B58: INCREASE IN NET POSITION | D58: =SUM(D50+D57) -> -1781850.953 | F58: =SUM(F50+F57) -> -2641374.676
B61: Net Position
A62: %,R,FACCOUNT,TBOR_SASRECNP_ACCT,NNET POSITION | B62: Net position - beginning of year, as originally reported | D62: 18924214.55 | F62: 18027356.8 | I62: Period 0 through Period 12, acct 3xxxxx
B63: Prior year adjustments
B64: Net position - beginning of year, restated | D64: =SUM(D62+D63) -> 18924214.55 | F64: =SUM(F62+F63) -> 18027356.8
B65: Net position - end of year | D65: =SUM(D58+D64) -> 17142363.6 | F65: =SUM(F58+F64) -> 15385982.13
B94: Version 9.2 | D94: 5.14
B96: Release | D96: Date | F96: Developer | I96: Change Request and Details
B97: 4.3 | D97: 2015-02-10 | F97: Robert Prescott | I97: TSK24278 | J97: New Report
B98: 5 | D98: 2015-09-30 | F98: Rmullinix | I98: TSK26266, prepare for switch to unix processing
B99: 5.13 | D99: 2016-04-07 | F99: Yvonne Howington | I99: TSK27609, extensive changes
B100: 5.14 | D100: 2016-05-16 | F100: Mpaktinat | I100: tsk27804, update account mappings
